Cogmind - Beta 15 @@@ ROGUE MODE // 2025.05.11 @ 00:09:48 Player: Skysub Result: Self-destructed Performance ------------- Evolutions (2) 1000 Regions Visited (3) 600 Robots Destroyed (36) 180 Value Destroyed (978) 978 Prototype IDs (1) 20 Alien Tech Used (0) 0 Bonus (0) 0 TOTAL SCORE: 2778 Bonus ------- None Cogmind --------- Core Integrity 464/550 Matter 59/300 Energy 100/100 System Corruption 0% Temperature Warning (372) Movement Rolling (110) Location -8/Materials Parts ------- > --- POWER (1) -------- (None) > --- PROPULSION (3) --- Subdweller Monowheel > --- UTILITY (5) ------ Medium Storage Unit Structural Scanner Improved Sensor Array Improved Signal Interpreter > --- WEAPON (2) ------- Advanced Beam Cannon Heavy Battle Rifle > --- INVENTORY (10) --- Ion Engine Makeshift Flight Unit Huge Storage Unit Improved Terrain Scanner Scrap Shield Subdweller Shrapnel Launcher Makeshift Hammer Peak State ------------ > --- POWER ------------ Deuterium Engine > --- PROPULSION ------- Wheel Subdweller Monowheel > --- UTILITY ---------- Medium Storage Unit Structural Scanner Improved Sensor Array Improved Signal Interpreter Hardened Medium Armor Plating > --- WEAPON ----------- Heavy Battle Rifle Makeshift Hammer > --- INVENTORY -------- Ion Engine Makeshift Flight Unit Huge Storage Unit Improved Terrain Scanner Scrap Shield Advanced Beam Cannon Heavy Battle Rifle Subdweller Shrapnel Launcher [Rating: 27] Favorites ----------- Power Ion Engine Engine Ion Engine Power Core Light Nuclear Core Propulsion Light Treads Treads Light Treads Wheel Subdweller Monowheel Utility Medium Storage Unit Device Structural Scanner Storage Medium Storage Unit Processor Signal Interpreter Protection Hardened Medium Armor Plating Weapon Assault Rifle Energy Cannon Advanced Beam Cannon Ballistic Gun Assault Rifle Launcher Subdweller Shrapnel Launcher Impact Weapon Makeshift Hammer Build | -11 -10 -10 -8 ------- Run | Yrd Mat Sub Mat Slots Evolved 4 | . . . 4 Power . | . . . . Propulsion 1 | . . . 1 Utility 3 | . . . 3 Weapon . | . . . . Parts Attached 37 | 7 15 10 5 Power 7 | 1 3 2 1 Engine 6 | 1 2 2 1 Core 1 | . 1 . . Reactor . | . . . . Propulsion 7 | 2 3 2 . Treads 5 | 2 3 . . Leg . | . . . . Wheel 2 | . . 2 . Hover . | . . . . Flight . | . . . . Utility 11 | 2 4 1 4 Device 5 | 1 2 1 1 Storage 3 | 1 2 . . Processor 2 | . . . 2 Hackware . | . . . . Protection 1 | . . . 1 Artifact . | . . . . Weapon 12 | 2 5 5 . Energy Gun . | . . . . Energy Cannon 2 | . 2 . . Ballistic Gun 6 | 2 2 2 . Ballistic Cannon . | . . . . Launcher 2 | . . 2 . Special Weapon . | . . . . Impact Weapon 2 | . 1 1 . Slashing Weapon . | . . . . Piercing Weapon . | . . . . Special Melee Weapon . | . . . . Unidentified Prototypes 1 | . 1 . . Parts Lost 11 | . 4 3 4 Power 2 | . 1 . 1 Propulsion 4 | . 1 2 1 Utility 2 | . 1 . 1 Weapon 3 | . 1 1 1 Highest Loss Streak 4 | . 3 1 4 To Critical Strikes . | . . . . Average Backups 8 | 2 8 8 7 Power . | . 1 . . Propulsion 1 | 1 2 1 1 Utility 3 | . 3 4 3 Weapon 2 | . 2 2 2 Tool/Special . | . . . . Unused Backups 8 | . 1 5 2 Power 1 | . . 1 . Propulsion 3 | . 1 1 1 Utility 3 | . . 2 1 Weapon 1 | . . 1 . Tool/Special . | . . . . Average Slot Usage (%) 96 | . 96 99 80 Engine 11 | . 10 13 9 Core 1 | . 3 . . Treads 15 | . 24 8 . Wheel 9 | . . 18 16 Device 13 | . 13 14 16 Storage 13 | . 14 14 9 Energy Cannon 5 | . 6 4 . Ballistic Gun 14 | . 21 9 10 Launcher 4 | . . 9 1 Impact Weapon 2 | . . 5 5 Peak Build Rating 27 | 9 11 17 27 Average Rating 11 | 5 9 13 22 On Entrance 8 | . 9 10 14 Naked Turns . | . . . . Heaviest Build 37 | 14 21 32 37 Greatest Support 40 | 40 40 40 30 Greatest Overweight (x) 1 | . 1 1 1 Average Overweight (x) . | . . . . Largest Inventory Capacity 25 | 8 25 10 10 Average Capacity 9 | 7 9 10 10 Most Carried 10 | 3 10 10 9 Average Carried 8 | 2 8 9 8 Final Capacity 10 | 8 10 10 10 Final Carried 10 | 3 10 9 8 Class Distribution -------------------- 96% | Mutant Dominant Class ---------------- Mutant | -10/Materials Mutant | -10/Subcaves Assassin | -8/Materials Resources | -11 -10 -10 -8 ----------- Run | Yrd Mat Sub Mat Matter Collected 1001 | 204 552 245 . Remotely . | . . . . Salvage Created 1248 | 73 857 272 46 Parts 66 | 3 45 17 1 Haulers Intercepted 2 | . 2 . . Recyclers Shooed 3 | . 3 . . Parts Field Recycled . | . . . . Retrieved Matter . | . . . . Parts Self-Destructed 7 | . . 7 . Prevented . | . . . . Kills | -11 -10 -10 -8 ------- Run | Yrd Mat Sub Mat Combat Hostiles Destroyed 28 | . 17 10 1 Melee 1 | . . 1 . Guns 19 | . 15 3 1 Cannons 4 | . 2 2 . AOE 4 | . . 4 . Classes Destroyed 9 | 3 5 1 . Worker 1 | 1 . . . Tunneler 1 | 1 . . . Hauler 2 | . 2 . . Recycler 1 | 1 . . . Operator 1 | . 1 . . Watcher 2 | . 2 . . Swarmer 6 | . 3 3 . Grunt 15 | . 14 . 1 Subdweller 7 | . . 7 . Best Kill Streak 4 | 2 4 3 1 Combat Bots Only 4 | . 4 3 1 Max Kills in Single Turn 1 | 1 1 1 1 Gunslinging . | . . . . Exploded 1 | . . 1 . Melee 1 | . . 1 . Uniques/NPCs Destroyed . | . . . . Combat | -11 -10 -10 -8 -------- Run | Yrd Mat Sub Mat Hostile Shots Fired 205 | . 104 45 56 Missed 49 | . 17 19 13 Hits 156 | . 87 26 43 Projectile 156 | . 87 26 43 Critical Strikes 3 | . 1 . 2 Damage Taken 2105 | . 968 475 662 Core 322 | . 191 45 86 Absorbed by Shields . | . . . . Core Remaining (%) 52 | 100 . 5 . Volleys Fired 114 | 1 89 12 12 Largest 2 | 2 2 2 2 Hottest 101 | 40 88 101 101 Shots Fired 223 | 2 173 25 23 Gun 191 | 2 155 12 22 Cannon 25 | . 18 6 1 Launcher 7 | . . 7 . Special . | . . . . Kinetic 194 | 2 155 15 22 Thermal 25 | . 18 6 1 Explosive 4 | . . 4 . Electromagnetic . | . . . . Robot Hit Streak 14 | 1 14 7 4 Robot Miss Streak 6 | . 6 2 6 Penetration Max . | . . . . Secondary Targets 4 | . 3 . 1 Max Gunslinging Chain 1 | . 1 . 1 Shots Hit Robots 144 | 1 115 16 12 Core Hits 62 | 3 42 14 3 Critical Kills 3 | . 3 . . Critical Parts Destroyed . | . . . . Critical Strikes 3 | . 3 . . Destroy 3 | . 3 . . Melee Attacks 15 | . 1 11 3 Impact 15 | . 1 11 3 Slashing . | . . . . Piercing . | . . . . Sneak Attacks . | . . . . Combat Hostiles . | . . . . Follow-up Attacks . | . . . . Damage Inflicted 2391 | 39 1463 621 268 Guns 1624 | 13 1219 145 247 Cannons 304 | . 202 81 21 Explosions 334 | . . 334 . Melee 61 | . . 61 . Ramming 68 | 26 42 . . Kinetic 1808 | 13 1219 329 247 Thermal 304 | . 202 81 21 Explosive 150 | . . 150 . Electromagnetic . | . . . . Impact 61 | . . 61 . Slashing . | . . . . Piercing . | . . . . Highest Corruption 6 | . 6 6 . Average Corruption 5 | . 5 5 . Corruption Purged 6 | . . 6 . Corruption Blocked . | . . . . Effects 51 | . 9 42 . Message Errors 17 | . 4 13 . Matter Fused 17 | . 3 14 . Heat Flow Errors 5 | . 1 4 . Energy Discharges 6 | . . 6 . Data Loss (minor) 3 | . 1 2 . Data Loss (major) 2 | . . 2 . Misfires 1 | . . 1 . Overload Shots . | . . . . Overflow Damage 2 | . . 2 . Projectiles . | . . . . Explosions 2 | . . 2 . Melee . | . . . . Knockbacks 2 | 1 1 . . Impact 2 | 1 1 . . Kinetic . | . . . . Secondary . | . . . . Self-Inflicted Damage 31 | . . 31 . Shots 1 | . . 1 . Rammed 21 | 10 11 . . Targets Rammed 23 | 12 11 . . Kicked . | . . . . Crushed 2 | 2 . . . Highest Temperature 384 | . 384 213 354 Average Temperature 92 | . 80 94 149 Received Heat Transfer 915 | . 480 93 342 Effects 3 | . 2 . 1 Energy Bleed 1 | . . . 1 Interference 2 | . 2 . . Siege Activations . | . . . . Martial Activations . | . . . . Shielding Activations . | . . . . Robots Disrupted . | . . . . Combat Hostiles . | . . . . Robots Corrupted . | . . . . Combat Hostiles . | . . . . Parts Fried . | . . . . Impact Corruptions . | . . . . Robots Melted . | . . . . Combat Hostiles . | . . . . Parts Melted 2 | . 2 . . Heat Transferred 555 | . 370 148 37 Parts Sabotaged . | . . . . Parts Stolen . | . . . . Parts Stripped . | . . . . Power Chain Reactions . | . . . . Alert | -11 -10 -10 -8 ------- Run | Yrd Mat Sub Mat Maximum Alert Level . | . . . . Low Security (%) 100 | 100 100 . 100 Level 1 . | . . . . Level 2 . | . . . . Level 3 . | . . . . Level 4 . | . . . . Level 5 . | . . . . High Security . | . . . . Max Security . | . . . . Peak Influence 111 | 10 111 . 30 Initial . | . . . . Average 30 | 1 36 . 7 Influence Increases 801 | 15 519 210 57 Destroy 0b10 Robot/C 420 | . 340 60 20 Destroy 0b10 Robot/NC 40 | 15 25 . . Destroy Leader 78 | . 78 . . Successful Hack 28 | . 28 . . Disable Machine 15 | . . . 15 Destroy Structure 10 | . 3 . 7 Partial Spotted 15 | . . . 15 Lose Combat Pursuer 195 | . 45 150 . Influence Decreases 801 | 15 519 210 57 Time Decay 726 | 15 479 190 42 Lost Part 75 | . 40 20 15 Squads Dispatched 4 | . 4 . . Investigation 3 | . 3 . . Extermination . | . . . . Reinforcement 1 | . 1 . . Assault . | . . . . Garrison . | . . . . Intercept . | . . . . Searches Triggered . | . . . . Construction Impeded . | . . . . Haulers Reinforced . | . . . . Active Scanning Responses . | . . . . Cargo Convoy Interrupts . | . . . . Stealth | -11 -10 -10 -8 --------- Run | Yrd Mat Sub Mat Distress Signals 2 | . 2 . . Communications Jammed . | . . . . Distress Signals . | . . . . Times Spotted 45 | . 25 13 7 Peak Tracking Total 9 | . 5 4 9 Tactical Retreats 5 | . 2 3 . Traps | -11 -10 -10 -8 ------- Run | Yrd Mat Sub Mat Traps Triggered 8 | . 5 3 . Indirectly . | . . . . Trap Hack Attempts . | . . . . Triggered . | . . . . Disarmed . | . . . . Reprogrammed . | . . . . Reused . | . . . . Traps Extracted . | . . . . Installed . | . . . . Triggered . | . . . . Machines | -11 -10 -10 -8 ---------- Run | Yrd Mat Sub Mat Machines Disabled 1 | . . . 1 Max in Single Turn 1 | . . . 1 Machines Repaired . | . . . . Machines Dismantled . | . . . . Machines Sabotaged . | . . . . Overloaded Fab Kills . | . . . . Hacking | -11 -10 -10 -8 --------- Run | Yrd Mat Sub Mat Machines Accessed 9 | . 7 1 1 Terminals 7 | . 6 . 1 Fabricators . | . . . . Repair Stations . | . . . . Recycling Units 1 | . 1 . . Scanalyzers . | . . . . Garrison Access . | . . . . Total Hacks 32 | . 24 5 3 Successful 23 | . 17 5 1 Failed 9 | . 7 . 2 Catastrophic 1 | . 1 . . Database Lockouts . | . . . . Manual 10 | . 8 . 2 Terminals 25 | . 22 . 3 Fabricators . | . . . . Repair Stations . | . . . . Recycling Units 2 | . 2 . . Scanalyzers . | . . . . Garrison Access . | . . . . Terminal Hacks 14 | . 9 5 . Record 5 | . . 5 . Alert Level 1 | . 1 . . Maintenance Status 1 | . 1 . . Patrol Status 1 | . 1 . . Investigation Status 1 | . 1 . . Recall Investigation 1 | . 1 . . Recall Reinforcements 1 | . 1 . . Zone Layout 3 | . 3 . . Fabricator Hacks . | . . . . Repair Station Hacks . | . . . . Recycling Unit Hacks 2 | . 2 . . Report Inventory 1 | . 1 . . Retrieve Components 1 | . 1 . . Scanalyzer . | . . . . Garrison Access Hacks . | . . . . Unauthorized Hacks 7 | . 6 . 1 Terminals 7 | . 6 . 1 Botnet 7 | . 6 . 1 Fabricators . | . . . . Repair Stations . | . . . . Recycling Units . | . . . . Scanalyzers . | . . . . Garrison Access . | . . . . Data Cores Recovered . | . . . . Used . | . . . . Hacking Detections 7 | . 6 . 1 Full Trace Events 1 | . 1 . . Feedback Events . | . . . . Feedback Blocked . | . . . . Robot Schematics Acquired . | . . . . Robots Built . | . . . . Authchips . | . . . . Time . | . . . . Total Robot Build Rating . | . . . . Part Schematics Acquired . | . . . . Parts Built . | . . . . Authchips . | . . . . Time . | . . . . Total Part Build Rating . | . . . . Parts Repaired . | . . . . Time . | . . . . Parts Recycled . | . . . . Recycled Matter . | . . . . Retrieved Matter . | . . . . Retrieved Components 10 | . 10 . . Parts Scanalyzed . | . . . . Part Schematics Acquired . | . . . . Parts Damaged . | . . . . Bothacking | -11 -10 -10 -8 ------------ Run | Yrd Mat Sub Mat Used RIF Installer . | . . . . Robots Hacked . | . . . . Non-combat . | . . . . Combat . | . . . . Robot Hacks Applied . | . . . . Relay Couplers Released . | . . . . Fabnet Peak Effective % . | . . . . Robots Rewired . | . . . . Allies Hacked . | . . . . Hacks Repelled . | . . . . Allies | -11 -10 -10 -8 -------- Run | Yrd Mat Sub Mat Total Allies . | . . . . Largest Group . | . . . . Highest-Rated Group . | . . . . Highest-Rated Ally . | . . . . Total Orders . | . . . . Ally Attacks . | . . . . Total Damage . | . . . . Kills . | . . . . Allies Corrupted . | . . . . Allies Melted . | . . . . Intel | -11 -10 -10 -8 ------- Run | Yrd Mat Sub Mat Active Infowar (turns) 3198 | 27 1651 1372 148 Sensors 136 | . . . 136 Terrain 245 | 27 218 . . Structural 2953 | . 1433 1372 148 Robot Analysis Total . | . . . . Derelict Logs Recovered 1 | . . 1 . Drone Launches . | . . . . Drone Recoveries . | . . . . Exploration | -11 -10 -10 -8 ------------- Run | Yrd Mat Sub Mat Turns Passed 3862 | 194 1708 1812 148 Spaces Moved 2184 | 104 785 1195 100 Core 7 | 7 . . . Treads 1225 | 97 785 343 . Legs . | . . . . Wheels 952 | . . 852 100 Hover . | . . . . Flight . | . . . . Fastest Speed 50 | 50 160 95 95 Average Speed 132 | 152 161 114 95 Slowest Speed 240 | 160 240 240 107 Overloaded Moves . | . . . . Propulsion Burnouts . | . . . . Robots Hopped . | . . . . Potential Cave-ins . | . . . . Cave-ins Triggered . | . . . . Exploration Rate (%) 47 | 5 97 74 13 Regions Visited 3 Branch Regions 1 Pre-discovered Areas 1 | . . 1 . Known Exits Taken . | . . . . Unknown Exits Taken 3 | 1 1 1 . Scrap Searched 15 | . . 15 . Spaces Dug 4 | . 1 1 2 Terrain Destroyed 61 | . 1 53 7 Melee 4 | . 1 1 2 Projectile 5 | . . . 5 AOE 52 | . . 52 . Terrain Rammed . | . . . . Walls Destroyed . | . . . . Machines Disabled . | . . . . Actions | -11 -10 -10 -8 --------- Run | Yrd Mat Sub Mat Total 2903 | 127 1050 1602 124 Wait 486 | 1 134 351 . Move 2181 | 103 784 1194 100 Hop . | . . . . Pick Up 20 | 3 8 9 . Fast Attach 14 | 7 2 2 3 Attach 10 | . 2 6 2 Detach 4 | . . 3 1 Swap 22 | . 14 5 3 Drop 14 | . 5 9 . Fire 114 | 1 89 12 12 Melee 15 | . 1 11 3 Ram . | . . . . Kick . | . . . . Crush 23 | 12 11 . . Escape Stasis . | . . . . Rewire . | . . . . Trap . | . . . . Miscellaneous . | . . . . Route ------- -11/Scrapyard -10/Materials (discovered 5 exits: [*Mat x3] / [*Min] / *Sub) -10/Subcaves (discovered 2 exits: *Mat x2) -8/Materials History --------- Turn | Location | Event 8 | -11/Scrapyard | Discovered new exit (range 14) 195 | -11/Scrapyard | Entered Materials 302 | -10/Materials | Build established: Mutant 390 | -10/Materials | Discovered new exit (range 9) 719 | -10/Materials | Discovered new exit (range 4) 749 | -10/Materials | Discovered new exit (range 6) 810 | -10/Materials | Discovered new exit (range 3) 819 | -10/Materials | Core integrity fell below 50% 879 | -10/Materials | Lost 3 parts (1p1n1w) 1892 | -10/Materials | Discovered new exit (range 8) 1903 | -10/Materials | Entered Subcaves 2476 | -10/Subcaves | Ambushed by Subdwellers from Twisted Machinery 2492 | -10/Subcaves | Core integrity fell below 20% 2576 | -10/Subcaves | Discovered new exit (range 8) 2611 | -10/Subcaves | A swath of the cavern ceiling suddenly collapsed 2673 | -10/Subcaves | A swath of the cavern ceiling suddenly collapsed 2689 | -10/Subcaves | Learned location of Storage (-7) 2701 | -10/Subcaves | Visited Clippyterm 2704 | -10/Subcaves | Learned Research security intel 2704 | -10/Subcaves | Learned Factory emergency access door positions 2803 | -10/Subcaves | Disturbed a concealed Subdweller 2873 | -10/Subcaves | Shifting Twisted Machinery released Sub. Laser 2878 | -10/Subcaves | Shifting Twisted Machinery released Barrage Gun 3149 | -10/Subcaves | Shifting Twisted Machinery released Mak. System Restoration Module 3153 | -10/Subcaves | Shifting Twisted Machinery released Battle Rifle 3659 | -10/Subcaves | Discovered new exit (range 9) 3715 | -10/Subcaves | Entered Materials 3715 | -8/Materials | Evolved 4 slots: Propulsion x1, Utility x3 3863 | -8/Materials | Self-destructed Last Messages --------------- K-01 Serf collects debris. TF Node disabled. Imp. Sensor Array tumbles out of TF Node. Imp. Signal Interpreter tumbles out of TF Node. Acquired Imp. Signal Interpreter. Discarded Signal Interpreter. Acquired Hrd. Medium Armor Plating. Destroyed Lgt. Nuclear Core. G-47 Trooper destroyed. Switching to secondary target: Y-45 Defender. U-05 Engineer builds a Wall. Wheel destroyed. U-05 Engineer builds a Wall. Critical hit (Burn: +37). Atomic Centrifuge disabled. Hvy. Battle Rifle destroyed. Hrd. Medium Armor Plating destroyed. Critical hit (Burn: +37). Overheating: Energy bleed (-65). Deuterium Engine destroyed. Map ----- +----------------------------------------------------+ | = + # # ## ##???????? | | ####### #######+### ## ##???????? | | ####### ##### ###+### ##???????? | | "T"??????## ! ##???????? | | """??????######## ##???????? | | #+####??????######## ##???????? | | ????????????## ############???????? | | ??????????????????### #############???????? | | ?????????????????? # ###?????????????????? | | ??????????????????? # ##??????????????????? | | ??????????????????? + ##??????????????????? | | ??????????????????? # ##??????????????????? | | ??????????????????? # #########???????????? | | ??????????????????? # #########???????????? | | ???????????????????## # ##???????????? | | ???????????????###### # """ =##???????????? | | ???????????????###### # """ ##???????????? | | ????????? ^ + """ ##???????????? | | ????????? w # ##???????????? | | ????????? # [ ##???????????? | | ????????? ######## ####+####???????????? | | ????????????##"""#### #### ####???????????? | | ??????????????"T"#### #### ##?????????????? | | ???????????????? ; #### ### ???????????? | | ??????????????????? # Y #### ### ???????????? | | ??????????????????? #a g@ # ???????????? | | ??????????????""" + l g ""??????? | | ??????????????""" ; # ""??????? | | ??????????????"" =# %g # ???""??????? | | ??????????? # m " " # ???????????? | | ???????????######?### """ # ???????????? | | ??????????? ? """ ##???????????? | | ????????????????? ##???????????? | | ???????????????? ##???????????? | | ????????????? u ##???????????? | | ?????????????############;#+##+##???????????? | | ?????????????# # ##???????????? | | ?????????????????????????"??????????????????? | | ?????????????????????????"??????????????????? | | ????????????????????????????????????????????? | | ????????????????????????????????????????????? | | ????????????????????????????????????????????? | | ????????????????????????????????????????????? | | ????????????????????????????????????????????? | | ????????????????????????????????????????????? | | ????????????????????????????????????????????? | | ????????????????????????????????????????????? | | ????????????????????????????????????????????? | | ????????????????????????????????????????????? | | ????????????????????????????????????????????? | +----------------------------------------------------+ Best States ------------- Heat Dissipation 31 Energy Generation 15 Energy Capacity 275 Matter Stores 300 Matter Capacity 300 Sight Range 16 Robot Scan Range 15 Terrain Scan Range 16 Terrain Scan Density 10 Armor Coverage 225 Evasion (%) 41 Recoil Reduction 2 Item Schematics ----------------- None Robot Schematics ------------------ None Fabricated ------------ Nothing Repaired ---------- Nothing Alien Tech Used ----------------- None Achievements -------------- None Challenges ------------ None Game ------ Seed SlugVampiricStick Manual? 0 Play Time 00:26:42 Cumulative 71.9 hours Start 2025.05.10 @ 23:44:48 End 2025.05.11 @ 00:09:48 Sessions 1 Manual Loads 0 Difficulty Rogue Special Mode None Game No. 70 Rogue 70 Adventurer 0 Explorer 0 Win Type - Total 1 Types 1/0/0/0/0/0/0/0/0/0 Lore% 44 Gallery% 46 Achievement% 42 Wizard Run 0 Options --------- Layout 1 ASCII 0 Keyboard 1 Movement Numpad Keybinds 0 Fullscreen 1 Font 32/SmallcapsGlow Map View 50x35 Zoom Use 0% Tactical HUD 0 Map Filters NONE Filters NONE Steam 1 RUN: c3548fc3-f5ae-4e82-b6ba-097e065ba884